Workbook

Sheet DADOS
A1: 27476 | B1: PO - Planilha Orçamentária / PLQ - Planilha de Levantamento de Quantidades / CFF - Cronograma Físico Financeiro
A2: v008
A4: INSTRUÇÕES DE USO E PREENCHIMENTO
A6: 1. Este documento somente pode ser utilizado nas versões do Excel 2003 ou superior. Não deve ser utilizado versões do BROffice. O Documento deve ser salvo SOMENTE em extensão habilitada para macros (.xls ou .xlsm). Se o documento for salvo na extensão .xlsx, o arquivo será INUTILIZADO.
A8: 2. Para funcionamento pleno desse arquivo, a Segurança de Macros do Excel deve ser habilitada.
A10: 2.1 Na Versão Excel 2003, selecione na Faixa de Opções: Ferramentas --> Macro --> Segurança --> Na aba Nível de Segurança selecione a Opção "Baixo" --> Clique em OK --> Feche e abra o Excel novamente para utilizar a Planilha.
A12: 2.2 Na Versão Excel 2007 ou superior, selecione na Faixa de Opções: Arquivo --> Opções --> Central de Confiabilidade --> Configurações da Central de Confiabilidade --> Configurações de Macro --> Habilitar todas as Macros --> Clique em OK --> Feche e abra o excel novamente para utilizar a Planilha.
A14: 3. O Preenchimento deve ser feito somente nas células em amarelo. As outras células são de preenchimento Automático.
A16: 4. Preferências de Elaboração do Orçamento
A18: 4.1. Preenchimento de Quantidades
A22: 5. Ordem de Preenchimento
A24: 5.1. na Aba DADOS
A26: 5.1.1. Preencha no Quadro abaixo os Dados do TC/CR:
A28: Nº OPERAÇÃO | C28: GESTOR | F28: PROGRAMA | J28: AÇÃO / MODALIDADE | P28: OBJETO
J29: Recurso Próprio | P29: Pavimentação Asfáltica Sobre Pedras Irregulares
A31: PROPONENTE / TOMADOR | G31: MUNICÍPIO / UF | K31: LOCALIDADE / ENDEREÇO | Q31: APELIDO DO EMPREENDIMENTO
A32: Prefeitura Municipal de Tunápolis | G32: Tunápolis/SC | K32: Rua São Lourenço
A35: 5.1.2. Preencha no quadro abaixo as informações sobre o orçamento:
A37: DATA BASE | C37: DESON. | D37: LOCALIDADE DO SINAPI | G37: DESCRIÇÃO DO LOTE | T37: BDI 1 | U37: BDI 2 | V37: BDI 3 | W37: BDI 4 | X37: BDI 5
A38: 2020-07-01 | C38: Não | D38: Florianópolis / SC | T38: =IF(ISERROR(INDIRECT("'BDI ("&RIGHT(T37,1)&")'!N27")),"",INDIRECT("'BDI ("&RIGHT(T37,1)&")'!N27")) -> 0.22 | U38: =IF(ISERROR(INDIRECT("'BDI ("&RIGHT(U37,1)&")'!N27")),"",INDIRECT("'BDI ("&RIGHT(U37,1)&")'!N27")) ->  | V38: =IF(ISERROR(INDIRECT("'BDI ("&RIGHT(V37,1)&")'!N27")),"",INDIRECT("'BDI ("&RIGHT(V37,1)&")'!N27")) ->  | W38: =IF(ISERROR(INDIRECT("'BDI ("&RIGHT(W37,1)&")'!N27")),"",INDIRECT("'BDI ("&RIGHT(W37,1)&")'!N27")) ->  | X38: =IF(ISERROR(INDIRECT("'BDI ("&RIGHT(X37,1)&")'!N27")),"",INDIRECT("'BDI ("&RIGHT(X37,1)&")'!N27")) -> 
A40: 4.1.2. Preencha no quadro abaixo as informações sobre o orçamento licitado:
A42: CTEF n.º | C42: NOME DA EMPRESA | H42: DATA BASE | J42: DESON. | K42: REGIME DE EXECUÇÃO | N42: ACOMP. | O42: OBJETO CTEF | U42: DATA ASSINATURA | W42: VIGÊNCIA
A45: 5.1.3. Preencha a data de Início da Obra:
A47: DATA INÍCIO
A48: 2020-11-09
A50: 5.1.4. Preencha no(s) Quadro(s) abaixo os Dados do(s) Responsável(is) Técnico(s) pela elaboração do Orçamento:
G52: Exibir o 2° Quadro de Assinatura? | K52: SIM
A54: Nome: | B54: Leonardo Ives Massing Moreira | G54: Nome:
A55: =IF(OR(TipoOrçamento="BASE",TipoOrçamento="REPROGRAMADONPL"),"Título:","Cargo:") -> Título: | B55: Engenheiro Civil | G55: =A55 -> Título:
A56: =IF(OR(TipoOrçamento="BASE",TipoOrçamento="REPROGRAMADONPL"),"CREA/CAU:","Empresa:") -> CREA/CAU: | B56: 140.221-0 | G56: =A56 -> CREA/CAU:
A57: =IF(OR(TipoOrçamento="BASE",TipoOrçamento="REPROGRAMADONPL"),"ART/RRT:","CNPJ:") -> ART/RRT: | G57: =A57 -> ART/RRT:
A60: 5.2. Legenda das Abas
A62: 5.2.1. LARANJA: Aba DADOS. Preenchimento Obrigatório. Impressão Dispensada.
A63: 5.2.2. AMARELO: Abas BDI, PO, PLQ e CFF. Preenchimento e Impressão Obrigatórias. O preenchimento da Aba BDI é dispensada para os casos de Aquisição Direta de Materiais e Equipamentos. A Impressão da Aba PLQ pode ser dispensada para casos de Frente de Obra Única.
A65: 5.3. na Aba BDI (Bonificações e Despesas Indiretas):
A67: 5.3.1. Escolha o tipo de empreendimento.
A68: 5.3.2. Escolha se o BDI será do tipo desonerado ou não (aba DADOS)
A69: 5.3.3. Informe a base de cálculo do ISS (0 a 100%).
A70: 5.3.4. Informe a alíquota do ISS (Normalmente de 2 a 5%).
A71: 5.3.5. Defina na tabela os percentuais a serem adotados para cada item que compõe o BDI nos campos em amarelo.
A72: 5.3.6. Preencha o campo observações se necessário (recomendado para os orçamentos que utilizam mais de um BDI).
A74: 5.4. na Aba PO (Planilha Orçamentária):
A76: 5.4.1. Primeiramente, selecione os níveis de cada item do orçamento na coluna NÍVEL.
A77: 5.4.1.1: O nível de "Serviço" serve tanto para serviços ou insumos (mão-de-obra / material / equipamento / veículo / máquina / ferramenta / etc). Um "nível 2/3/4" é um título (é preenchida apenas a coluna descrição) utilizado para organizar melhor a planilha orçamentária e engloba (agrupa) serviços e agrupadores de nível inferior.
A78: 5.4.2. Após a seleção dos níveis, preencha, para cada serviço, as informações sobre a Fonte de Referência, (SINAPI, SICRO, SIURB, etc) e o respectivo Código de Referência.
A79: 5.4.3. Esta planilha é compatível com o arquivo REFERÊNCIA distribuído pela CAIXA. Caso o arquivo REFERÊNCIA esteja aberto, será possível buscar um código através do botão "Buscar Código". Desta forma a descrição dos serviços será preenchida automaticamente (podendo ser substituída). Caso contrário, seu preenchimento deve ser manual.
A80: 5.4.3.1. As descrições e unidades preenchidas automaticamente ficarão vinculadas ao arquivo REFERÊNCIA até que se use o botão "Fixar Descrições", que quebra a fórmula e transforma as descrições em texto.
A81: 5.4.4. Preencher o custo unitário do serviço/insumo na Coluna CUSTO UNITÁRIO. ATENÇÃO: o custo unitário adotado deve ser menor ou igual ao contido na tabela de referência ou mediana das cotações de mercado.
A82: 5.4.5. Indicar o BDI adotado para cada serviço/insumo na Coluna BDI. Preferencialmente selecione uma das opções da lista suspensa que aparecerá na célula, esta lista contém os 05 BDIs que podem ser preenchidos na Aba BDI (conforme item 5.2 das instruções). Caso seja necessária a adoção de mais de 05 valores diferentes de BDI, digite o percentual diretamente na célula.
A83: 5.4.6. Conforme selecionado no item 4.1. desta Aba, a Coluna Quantidade pode ser preenchida diretamente na PO, ou representar a soma das quantidades de cada Frente de Obra, informadas na aba PLQ (Planilha de Levantamento de Quantitativos).
A84: 5.4.7. OBSERVAÇÃO: As demais colunas (Item / Quantidade / Preço Unitário / Preço Total) são de preenchimento automático. Não tente preenche-las ou alterá-las na Aba PO.
A85: 5.4.8. Se for necessário acrescentar ou excluir linhas da Planilha Orçamentária, utilize o Botão EDITAR PLANILHA e selecione as opções no quadro. ATENÇÃO: quanto maior o número de linhas mais lento será o processamento dos dados, então acrescente apenas o número necessário ou um pouco a mais.
A86: 5.4.8.1. Evite deixar linhas em branco no corpo da Planilha Orçamentária.
A87: 5.4.9. Caso deseje importar os dados de outro arquivo utilize apenas a opção COLAR ESPECIAL ==> VALORES.
A88: 5.4.10. Clique no Botão LICITAR / REPROGRAMAR para preencher o Orçamento Licitado ou Reprogramado.
A90: 5.5. na Aba PLQ (Planilha de Levantamento de Quantitativos):
A92: 5.5.1. Preencha primeiramente as Frentes de Obra.
A93: 5.5.1.1. Exemplos de Frentes de Obra (Rua A trecho 01 / Rua A trecho 02 / Rua B ; UH 01 / UH 02 / UH 03).
A94: 5.5.2. Preencha as quantidades dos serviços por frente de obra. A soma das quantidades de todas as frentes de um determinado serviço será a quantidade exibida na Planilha Orçamentária.
A95: 5.5.3. Caso deseje incluir ou excluir frentes, utilize os botões ADICIONAR e EXCLUIR.
A97: 5.6. na Aba CFF (Cronograma Físico-Financeiro):
A99: 5.6.1. Preencha a data de início da obra na aba Dados.
A100: 5.6.2. Preencha as porcentagens previstas por parcela para cada meta ou macrosserviço.
A101: 5.6.3. Para atualizar o Cronograma conforme o Orçamento e incluir ou excluir parcelas, utilize o botão EDITAR / ATUALIZAR CRONOGRAMA.
L107: (Selecione uma Localidade)
L108: Aracaju / SE | S108: =T38 -> 0.22
L109: Belém / PA | S109: =U38 -> 
L110: Belo Horizonte / MG | S110: =V38 -> 
L111: Boa Vista / RR | S111: =W38 -> 
L112: Brasília / DF | S112: =X38 -> 
L113: Campo Grande / MS
L114: Cuiabá / MT
L115: Curitiba / PR | P115: Empreitada Preço Global
L116: Florianópolis / SC | P116: Empreitada Preço Unitário
L117: Fortaleza / CE | P117: Empreitada Integral
L118: Goiânia / GO | P118: Tarefa
L119: João Pessoa / PB | P119: Contratação Integrada
L120: Macapá / AP | P120: Não se aplica
L121: Maceió / AL
L122: Manaus / AM | P122: BM
L123: Natal / RN | P123: PLE
L124: Palmas / TO
L125: Porto Alegre / RS
L126: Porto Velho / RO
L127: Recife / PE
L128: Rio Branco / AC
L129: Rio de Janeiro / RJ
L130: Salvador / BA
L131: São Luís / MA
L132: São Paulo / SP
L133: Teresina / PI
L134: Vitória / ES
A220: =A28 -> Nº OPERAÇÃO | C220: =C28 -> GESTOR | F220: =F28 -> PROGRAMA | J220: =J28 -> AÇÃO / MODALIDADE | P220: =P28 -> OBJETO
A221: =IF(A29="","",A29) ->  | C221: =IF(C29="","",C29) ->  | F221: =IF(F29="","",F29) ->  | J221: =IF(J29="","",J29) -> Recurso Próprio | L221: =IF(#REF!="","",#REF!) ->  | N221: =IF(#REF!="","",#REF!) ->  | P221: =IF(P29="","",P29) -> Pavimentação Asfáltica Sobre Pedras Irregulares
A223: =A31 -> PROPONENTE / TOMADOR | G223: =G31 -> MUNICÍPIO / UF | K223: =K31 -> LOCALIDADE / ENDEREÇO | Q223: =Q31 -> APELIDO DO EMPREENDIMENTO
A224: =IF(A32="","",A32) -> Prefeitura Municipal de Tunápolis | G224: =IF(G32="","",G32) -> Tunápolis/SC | H224: =IF(I32="","",I32) ->  | J224: =IF(#REF!="","",#REF!) ->  | K224: =IF(K32="","",K32) -> Rua São Lourenço | Q224: =IF(Q32="","",Q32) -> 
A226: =A37 -> DATA BASE | C226: =C37 -> DESON. | D226: =D37 -> LOCALIDADE DO SINAPI | G226: =G37 -> DESCRIÇÃO DO LOTE | T226: =T37 -> BDI 1 | U226: =U37 -> BDI 2 | V226: =V37 -> BDI 3 | W226: =W37 -> BDI 4 | X226: =X37 -> BDI 5
A227: =IF(A38="","",A38) -> 2020-07-01 | C227: =IF(C38="","",C38) -> Não | D227: Florianópolis / SC | T227: 0.22
A229: CTEF n.º | C229: NOME DA EMPRESA / CNPJ: | H229: DATA BASE | J229: DESON. | K229: REGIME DE EXECUÇÃO | N229: ACOMP. | O229: OBJETO CTEF | U229: DATA ASSINATURA | W229: VIGÊNCIA
A230: =IF(A43="","",A43) ->  | C230: =IF(C43="","",C43) ->  | E230: =IF(E43="","",E43) ->  | G230: =IF(G43="","",G43) ->  | H230: =IF(H43="","",H43) ->  | I230: =IF(I43="","",I43) ->  | J230: =IF(J43="","",J43) ->  | K230: =IF(K43="","",K43) ->  | M230: =IF(M43="","",M43) ->  | N230: =IF(N43="","",N43) ->  | O230: =IF(O43="","",O43) ->  | Q230: =IF(Q43="","",Q43) ->  | S230: =IF(S43="","",S43) ->  | U230: =IF(U43="","",U43) ->  | W230: =IF(W43="","",W43) -> 

Sheet BDI (1)
E1: MIN | F1: MED | G1: MAX | N1: ="Quadro de Composição do BDI "&MID(CELL("nome.arquivo",N1),5+FIND("BDI (",CELL("nome.arquivo",N1)),1) -> Quadro de Composição do BDI 1
A2: Construção e Reforma de Edifícios | B2: AC | C2: =CONCATENATE(A2,"-",B2) -> Construção e Reforma de Edifícios-AC | E2: 0.03 | F2: 0.04 | G2: 0.055
A3: =A2 -> Construção e Reforma de Edifícios | B3: SG | C3: Construção e Reforma de Edifícios-SG | E3: 0.008 | F3: 0.008 | G3: 0.01
A4: =A3 -> Construção e Reforma de Edifícios | B4: R | C4: Construção e Reforma de Edifícios-R | E4: 0.0097 | F4: 0.0127 | G4: 0.0127 | I4: Nº TC/CR | K4: PROPONENTE / TOMADOR
A5: =A4 -> Construção e Reforma de Edifícios | B5: DF | C5: Construção e Reforma de Edifícios-DF | E5: 0.0059 | F5: 0.0123 | G5: 0.0139 | I5: =DADOS!A29 -> 0 | K5: =DADOS!A32 -> Prefeitura Municipal de Tunápolis
A6: =A5 -> Construção e Reforma de Edifícios | B6: L | C6: Construção e Reforma de Edifícios-L | E6: 0.0616 | F6: 0.074 | G6: 0.0896
A7: =A6 -> Construção e Reforma de Edifícios | B7: BDI PAD | C7: Construção e Reforma de Edifícios-BDI PAD | E7: 0.2034 | F7: 0.2212 | G7: 0.25 | I7: OBJETO
A8: Construção de Praças Urbanas, Rodovias, Ferrovias e recapeamento e pavimentação de vias urbanas | B8: AC | C8: Construção de Praças Urbanas, Rodovias, Ferrovias e recapeamento e pavimentação de vias urbanas-AC | E8: 0.038 | F8: 0.0401 | G8: 0.0467 | I8: =DADOS!P29 -> Pavimentação Asfáltica Sobre Pedras Irregulares
A9: Construção de Praças Urbanas, Rodovias, Ferrovias e recapeamento e pavimentação de vias urbanas | B9: SG | C9: Construção de Praças Urbanas, Rodovias, Ferrovias e recapeamento e pavimentação de vias urbanas-SG | E9: 0.0032 | F9: 0.004 | G9: 0.0074
A10: Construção de Praças Urbanas, Rodovias, Ferrovias e recapeamento e pavimentação de vias urbanas | B10: R | C10: Construção de Praças Urbanas, Rodovias, Ferrovias e recapeamento e pavimentação de vias urbanas-R | E10: 0.005 | F10: 0.0056 | G10: 0.0097 | I10: TIPO DE OBRA DO EMPREENDIMENTO | Q10: DESONERAÇÃO
A11: Construção de Praças Urbanas, Rodovias, Ferrovias e recapeamento e pavimentação de vias urbanas | B11: DF | C11: Construção de Praças Urbanas, Rodovias, Ferrovias e recapeamento e pavimentação de vias urbanas-DF | E11: 0.0102 | F11: 0.0111 | G11: 0.0121 | I11: Construção de Praças Urbanas, Rodovias, Ferrovias e recapeamento e pavimentação de vias urbanas | Q11: =DADOS!$C$38 -> Não
A12: Construção de Praças Urbanas, Rodovias, Ferrovias e recapeamento e pavimentação de vias urbanas | B12: L | C12: Construção de Praças Urbanas, Rodovias, Ferrovias e recapeamento e pavimentação de vias urbanas-L | E12: 0.0664 | F12: 0.073 | G12: 0.0869
A13: Construção de Praças Urbanas, Rodovias, Ferrovias e recapeamento e pavimentação de vias urbanas | B13: BDI PAD | C13: Construção de Praças Urbanas, Rodovias, Ferrovias e recapeamento e pavimentação de vias urbanas-BDI PAD | E13: 0.196 | F13: 0.2097 | G13: 0.2423 | I13: Conforme legislação tributária municipal, definir estimativa de percentual da base de cálculo para o ISS: | Q13: 1
A14: Construção de Redes de Abastecimento de Água, Coleta de Esgoto | B14: AC | C14: Construção de Redes de Abastecimento de Água, Coleta de Esgoto-AC | E14: 0.0343 | F14: 0.0493 | G14: 0.0671 | I14: Sobre a base de cálculo, definir a respectiva alíquota do ISS (entre 2% e 5%): | Q14: 0.03
A15: =A14 -> Construção de Redes de Abastecimento de Água, Coleta de Esgoto | B15: SG | C15: Construção de Redes de Abastecimento de Água, Coleta de Esgoto-SG | E15: 0.0028 | F15: 0.0049 | G15: 0.0075
I16: Itens | M16: Siglas | N16: % Adotado | O16: Situação | P16: 1º Quartil | Q16: Médio | R16: 3º Quartil | T16: =IF(V27,"Para BDI fora do intervalo estatístico, deve ser apresentado Relatório Técnico Circunstanciado justificando a adoção do percentual de cada parcela do BDI.","") -> 
A17: =A15 -> Construção de Redes de Abastecimento de Água, Coleta de Esgoto | B17: R | C17: Construção de Redes de Abastecimento de Água, Coleta de Esgoto-R | E17: 0.01 | F17: 0.0139 | G17: 0.0174
A18: =A17 -> Construção de Redes de Abastecimento de Água, Coleta de Esgoto | B18: DF | C18: Construção de Redes de Abastecimento de Água, Coleta de Esgoto-DF | E18: 0.0094 | F18: 0.0099 | G18: 0.0117 | I18: =IF($I$11=$A$59,"Encargos Sociais incidentes sobre a mão de obra","Administração Central") -> Administração Central | M18: =IF($I$11=$A$59,"K1","AC") -> AC | N18: 0.0401 | O18: - | P18: =VLOOKUP(CONCATENATE(I$11,"-",M18),$C$2:$G$49,3,FALSE) -> 0.038 | Q18: =VLOOKUP(CONCATENATE(I$11,"-",M18),$C$2:$G$49,4,FALSE) -> 0.0401 | R18: =VLOOKUP(CONCATENATE(I$11,"-",M18),$C$2:$G$49,5,FALSE) -> 0.0467
A19: =A18 -> Construção de Redes de Abastecimento de Água, Coleta de Esgoto | B19: L | C19: Construção de Redes de Abastecimento de Água, Coleta de Esgoto-L | E19: 0.0674 | F19: 0.0804 | G19: 0.094 | I19: =IF($I$11=$A$59,"Administração Central da empresa ou consultoria - overhead","Seguro e Garantia") -> Seguro e Garantia | M19: =IF($I$11=$A$59,"K2","SG") -> SG | N19: 0.004 | O19: - | P19: =VLOOKUP(CONCATENATE(I$11,"-",M19),$C$2:$G$49,3,FALSE) -> 0.0032 | Q19: =VLOOKUP(CONCATENATE(I$11,"-",M19),$C$2:$G$49,4,FALSE) -> 0.004 | R19: =VLOOKUP(CONCATENATE(I$11,"-",M19),$C$2:$G$49,5,FALSE) -> 0.0074
A20: =A19 -> Construção de Redes de Abastecimento de Água, Coleta de Esgoto | B20: BDI PAD | C20: Construção de Redes de Abastecimento de Água, Coleta de Esgoto-BDI PAD | E20: 0.2076 | F20: 0.2418 | G20: 0.2644 | I20: =IF($I$11=$A$59,"","Risco") -> Risco | M20: =IF($I$11=$A$59,"","R") -> R | N20: 0.0056 | O20: - | P20: =VLOOKUP(CONCATENATE(I$11,"-",M20),$C$2:$G$49,3,FALSE) -> 0.005 | Q20: =VLOOKUP(CONCATENATE(I$11,"-",M20),$C$2:$G$49,4,FALSE) -> 0.0056 | R20: =VLOOKUP(CONCATENATE(I$11,"-",M20),$C$2:$G$49,5,FALSE) -> 0.0097
A21: Construção e Manutenção de Estações e Redes de Distribuição de Energia Elétrica | B21: AC | C21: Construção e Manutenção de Estações e Redes de Distribuição de Energia Elétrica-AC | E21: 0.0529 | F21: 0.0592 | G21: 0.0793 | I21: =IF($I$11=$A$59,"","Despesas Financeiras") -> Despesas Financeiras | M21: =IF($I$11=$A$59,"","DF") -> DF | N21: 0.0111 | O21: - | P21: =VLOOKUP(CONCATENATE(I$11,"-",M21),$C$2:$G$49,3,FALSE) -> 0.0102 | Q21: =VLOOKUP(CONCATENATE(I$11,"-",M21),$C$2:$G$49,4,FALSE) -> 0.0111 | R21: =VLOOKUP(CONCATENATE(I$11,"-",M21),$C$2:$G$49,5,FALSE) -> 0.0121
A22: =A21 -> Construção e Manutenção de Estações e Redes de Distribuição de Energia Elétrica | B22: SG | C22: Construção e Manutenção de Estações e Redes de Distribuição de Energia Elétrica-SG | E22: 0.0025 | F22: 0.0051 | G22: 0.0056 | I22: =IF($I$11=$A$59,"Margem bruta da empresa de consultoria","Lucro") -> Lucro | M22: =IF($I$11=$A$59,"K3","L") -> L | N22: 0.073 | O22: - | P22: =VLOOKUP(CONCATENATE(I$11,"-",M22),$C$2:$G$49,3,FALSE) -> 0.0664 | Q22: =VLOOKUP(CONCATENATE(I$11,"-",M22),$C$2:$G$49,4,FALSE) -> 0.073 | R22: =VLOOKUP(CONCATENATE(I$11,"-",M22),$C$2:$G$49,5,FALSE) -> 0.0869
A23: =A22 -> Construção e Manutenção de Estações e Redes de Distribuição de Energia Elétrica | B23: R | C23: Construção e Manutenção de Estações e Redes de Distribuição de Energia Elétrica-R | E23: 0.01 | F23: 0.0148 | G23: 0.0197 | I23: Tributos (impostos COFINS 3%, e PIS 0,65%) | M23: CP | N23: 0.0365 | O23: - | P23: 0.0365 | Q23: 0.0365 | R23: 0.0365
A24: =A23 -> Construção e Manutenção de Estações e Redes de Distribuição de Energia Elétrica | B24: DF | C24: Construção e Manutenção de Estações e Redes de Distribuição de Energia Elétrica-DF | E24: 0.0101 | F24: 0.0107 | G24: 0.0111 | I24: Tributos (ISS, variável de acordo com o município) | M24: ISS | N24: =IF($I$11<>$A$58,Q14*Q13,0) -> 0.03 | O24: - | P24: 0 | Q24: 0.025 | R24: 0.05
A25: =A24 -> Construção e Manutenção de Estações e Redes de Distribuição de Energia Elétrica | B25: L | C25: Construção e Manutenção de Estações e Redes de Distribuição de Energia Elétrica-L | E25: 0.08 | F25: 0.0831 | G25: 0.0951 | I25: Tributos (Contribuição Previdenciária sobre a Receita Bruta - 0% ou 4,5% - Desoneração) | M25: CPRB | N25: =IF(AND($I$11<>$A$58,Q11="Sim"),4.5%,0%) -> 0 | O25: =IF(AND(N25>=P25, N25<=R25), "OK", "Não OK") -> OK | P25: 0 | Q25: 0.045 | R25: 0.045
A26: =A25 -> Construção e Manutenção de Estações e Redes de Distribuição de Energia Elétrica | B26: BDI PAD | C26: Construção e Manutenção de Estações e Redes de Distribuição de Energia Elétrica-BDI PAD | E26: 0.24 | F26: 0.2584 | G26: 0.2786 | I26: BDI SEM desoneração (Fórmula Acórdão TCU) | M26: BDI PAD | N26: =IF($I$11=$A$58,0,ROUND((((1+N18+N19+N20)*(1+N21)*(1+N22)/(1-(N23+N24)))-1),4)) -> 0.22 | O26: =IF(OR($I$11=$A$59,$I$11=$A$58,AND(N26>=P26, N26<=R26)), "OK", "FORA DO INTERVALO") -> OK | P26: =IF($I$11=$A$58,0,VLOOKUP(CONCATENATE($I$11,"-",$M26),$C$2:$G$49,3,FALSE)) -> 0.196 | Q26: =IF($I$11=$A$58,0,VLOOKUP(CONCATENATE($I$11,"-",$M26),$C$2:$G$49,4,FALSE)) -> 0.2097 | R26: =IF($I$11=$A$58,0,VLOOKUP(CONCATENATE($I$11,"-",$M26),$C$2:$G$49,5,FALSE)) -> 0.2423
A27: Obras Portuárias, Marítimas e Fluviais | B27: AC | C27: Obras Portuárias, Marítimas e Fluviais-AC | E27: 0.04 | F27: 0.0552 | G27: 0.0785 | I27: BDI COM desoneração | M27: BDI DES | N27: =IF($I$11=$A$58,0,ROUND((((1+N18+N19+N20)*(1+N21)*(1+N22)/(1-(N23+N24+N25)))-1),4)) -> 0.22 | O27: =IF(Q11<>"Sim","",O26) ->  | V27: =AND(COUNTA(N18:N23)=6,O26<>"ok",NOT(V29)) -> FALSE | W27: pedir anexo
A28: =A27 -> Obras Portuárias, Marítimas e Fluviais | B28: SG | C28: Obras Portuárias, Marítimas e Fluviais-SG | E28: 0.0081 | F28: 0.0122 | G28: 0.0199
A29: =A28 -> Obras Portuárias, Marítimas e Fluviais | B29: R | C29: Obras Portuárias, Marítimas e Fluviais-R | E29: 0.0146 | F29: 0.0232 | G29: 0.0316 | I29: =IF(V29,"X","") ->  | J29: Anexo: Relatório Técnico Circunstanciado justificando a adoção do percentual de cada parcela do BDI. | V29: FALSE | W29: anexo apresentado
I31: Os valores de BDI foram calculados com o emprego da fórmula:
A32: =A29 -> Obras Portuárias, Marítimas e Fluviais | B32: DF | C32: Obras Portuárias, Marítimas e Fluviais-DF | E32: 0.0094 | F32: 0.0102 | G32: 0.0133 | L32: =IF(Q11="Sim","BDI.DES =","BDI.PAD =") -> BDI.PAD = | M32: =IF($I$11=$A$59,"(1+K1+K2)*(1+K3)","(1+AC + S + R + G)*(1 + DF)*(1+L)") -> (1+AC + S + R + G)*(1 + DF)*(1+L) | P32: - 1
A33: =A32 -> Obras Portuárias, Marítimas e Fluviais | B33: L | C33: Obras Portuárias, Marítimas e Fluviais-L | E33: 0.0714 | F33: 0.084 | G33: 0.1043 | M33: =IF(Q11="Sim","(1-CP-ISS-CRPB)","(1-CP-ISS)") -> (1-CP-ISS)
A34: =A33 -> Obras Portuárias, Marítimas e Fluviais | B34: BDI PAD | C34: Obras Portuárias, Marítimas e Fluviais-BDI PAD | E34: 0.228 | F34: 0.2748 | G34: 0.3095
I35: =CONCATENATE("Declaro para os devidos fins que, conforme legislação tributária municipal, a base de cálculo para ",I11,", é de ",Q13*100,"%, com a respectiva alíquota de ",Q14*100,"%.") -> Declaro para os devidos fins que, conforme legislação tributária municipal, a base de cálculo para Construção de Praças Urbanas, Rodovias, Ferrovias e recapeamento e pavimentação de vias urbanas, é de 100%, com a respectiva alíquota de 3%.
I37: =CONCATENATE("Declaro para os devidos fins que o regime de Contribuição Previdenciária sobre a Receita Bruta adotado para elaboração do orçamento foi ",IF(Q11="Sim","COM","SEM")," Desoneração, e que esta é a alternativa mais adequada para a Administração Pública.") -> Declaro para os devidos fins que o regime de Contribuição Previdenciária sobre a Receita Bruta adotado para elaboração do orçamento foi SEM Desoneração, e que esta é a alternativa mais adequada para a Administração Pública.
A38: Fornecimento de Materiais e Equipamentos (aquisição indireta - em conjunto com licitação de obras) | B38: AC | C38: Fornecimento de Materiais e Equipamentos (aquisição indireta - em conjunto com licitação de obras)-AC | E38: 0.015 | F38: 0.0345 | G38: 0.0449
A39: =A38 -> Fornecimento de Materiais e Equipamentos (aquisição indireta - em conjunto com licitação de obras) | B39: SG | C39: Fornecimento de Materiais e Equipamentos (aquisição indireta - em conjunto com licitação de obras)-SG | E39: 0.003 | F39: 0.0048 | G39: 0.0082 | I39: Observações:
A40: =A39 -> Fornecimento de Materiais e Equipamentos (aquisição indireta - em conjunto com licitação de obras) | B40: R | C40: Fornecimento de Materiais e Equipamentos (aquisição indireta - em conjunto com licitação de obras)-R | E40: 0.0056 | F40: 0.0085 | G40: 0.0089
A41: =A40 -> Fornecimento de Materiais e Equipamentos (aquisição indireta - em conjunto com licitação de obras) | B41: DF | C41: Fornecimento de Materiais e Equipamentos (aquisição indireta - em conjunto com licitação de obras)-DF | E41: 0.0085 | F41: 0.0085 | G41: 0.0111
A42: =A41 -> Fornecimento de Materiais e Equipamentos (aquisição indireta - em conjunto com licitação de obras) | B42: L | C42: Fornecimento de Materiais e Equipamentos (aquisição indireta - em conjunto com licitação de obras)-L | E42: 0.035 | F42: 0.0511 | G42: 0.0622 | I42: =PO!K38 -> Tunápolis/SC | O42: =PO!K41 -> 2020-10-20
A43: =A42 -> Fornecimento de Materiais e Equipamentos (aquisição indireta - em conjunto com licitação de obras) | B43: BDI PAD | C43: Fornecimento de Materiais e Equipamentos (aquisição indireta - em conjunto com licitação de obras)-BDI PAD | E43: 0.111 | F43: 0.1402 | G43: 0.168 | I43: Local | O43: Data
A44: Estudos e Projetos, Planos e Gerenciamento e outros correlatos | B44: K1 | C44: Estudos e Projetos, Planos e Gerenciamento e outros correlatos-K1 | E44: - | F44: - | G44: -
A45: =A44 -> Estudos e Projetos, Planos e Gerenciamento e outros correlatos | B45: K2 | C45: Estudos e Projetos, Planos e Gerenciamento e outros correlatos-K2 | E45: - | F45: 0.2 | G45: -
A46: =A45 -> Estudos e Projetos, Planos e Gerenciamento e outros correlatos | C46: Estudos e Projetos, Planos e Gerenciamento e outros correlatos- | E46: - | F46: - | G46: - | I46: Responsável Técnico | O46: Responsável Tomador
A47: =A46 -> Estudos e Projetos, Planos e Gerenciamento e outros correlatos | C47: Estudos e Projetos, Planos e Gerenciamento e outros correlatos- | E47: - | F47: - | G47: - | I47: Nome: | J47: =DADOS!B54 -> Leonardo Ives Massing Moreira | O47: Nome: | P47: Renato Paulata
A48: =A47 -> Estudos e Projetos, Planos e Gerenciamento e outros correlatos | B48: K3 | C48: Estudos e Projetos, Planos e Gerenciamento e outros correlatos-K3 | E48: - | F48: 0.12 | G48: - | I48: Título: | J48: =DADOS!B55 -> Engenheiro Civil | O48: Cargo: | P48: Prefeito Municipal
A49: =A48 -> Estudos e Projetos, Planos e Gerenciamento e outros correlatos | B49: BDI PAD | C49: Estudos e Projetos, Planos e Gerenciamento e outros correlatos-BDI PAD | E49: - | F49: - | G49: - | I49: =DADOS!A56 -> CREA/CAU: | J49: =DADOS!B56 -> 140.221-0
I50: =DADOS!A57 -> ART/RRT: | J50: =DADOS!B57 -> 0
A52: Construção e Reforma de Edifícios
A53: Construção de Praças Urbanas, Rodovias, Ferrovias e recapeamento e pavimentação de vias urbanas
A54: Construção de Redes de Abastecimento de Água, Coleta de Esgoto
A55: Construção e Manutenção de Estações e Redes de Distribuição de Energia Elétrica
A56: Obras Portuárias, Marítimas e Fluviais
A57: Fornecimento de Materiais e Equipamentos (aquisição indireta - em conjunto com licitação de obras)
A58: Fornecimento de Materiais e Equipamentos (aquisição direta)
A59: Estudos e Projetos, Planos e Gerenciamento e outros correlatos

Sheet PO
N1: PO - PLANILHA ORÇAMENTÁRIA | T1: Grau de Sigilo
B2: LOTE | C2: Meta | D2: Nível 2 | E2: Nível 3 | F2: Nível 4 | G2: Serviço | N2: =CHOOSE(1+LOG(1+2*(TipoOrçamento="BASE")+4*(TipoOrçamento="LICITADO")+8*(TipoOrçamento="REPROGRAMADOAC")+16*(TipoOrçamento="REPROGRAMADONPL"),2),"nada","Orçamento Base para Licitação","Orçamento Licitado","Orçamento Licitado Reprogramado","Orçamento Base para Licitação - Reprogramado") -> Orçamento Base para Licitação | T2: #PUBLICO | W2: Arredondamento
W3: Quantidade | X3: TRUE
A4: Nmax | U4: ERRO GERAL | W4: Custo Unitáro | X4: TRUE
A5: =MAX($A$12:$A$27) -> 2 | U5: =IF(COUNTIF($U$12:OFFSET($U$27,-1,0),"DESCRIÇÃO")+COUNTIF($U$12:OFFSET($U$27,-1,0),"UNIDADE")+COUNTIF($U$12:OFFSET($U$27,-1,0),"SEM VALOR")>0,"NÃO OK","OK") -> NÃO OK | W5: BDI | X5: TRUE
W6: Preço Unitário | X6: TRUE
W7: Preço Total | X7: TRUE
P9: =OFFSET(PLQ!$E$12,ROW($P9)-ROW(P$12),0) -> -
A10: Nível | B10: Altura | C10: n1 | D10: n2 | E10: n3 | F10: n4 | G10: n5 | H10: Czero | I10: Cnível | J10: Nível | K10: Item | L10: Fonte | M10: Código | N10: Descrição | O10: Unidade | P10: Quantidade | Q10: =IF(OR(TipoOrçamento="LICITADO",TipoOrçamento="REPROGRAMADOAC"),"Preço Unitário (R$)","Custo Unitário (R$)") -> Custo Unitário (R$) | R10: BDI (%) | S10: Preço Unitário (R$) | T10: Preço Total (R$) | U10: Erro de Dados | V10: Lista Crono | W10: Concatenação Fonte-Código | X10: BancoRef | Y10: =IF(TipoOrçamento="LICITADO","Preço Unitário Edital (R$)","Custo Unitário Referência (R$)") -> Custo Unitário Referência (R$) | Z10: =IF(TipoOrçamento="LICITADO","Valor BDI Edital","Valor BDI") -> Valor BDI
A11: =CHOOSE(1+LOG(1+2*(J11="Meta")+4*(J11="Nível 2")+8*(J11="Nível 3")+16*(J11="Nível 4")+32*(J11="Serviço"),2),0,1,2,3,4,"S") -> S | B11: =IF(OR(A11="S",A11=0),0,IF(ISERROR(I11),H11,SMALL(H11:I11,1))) -> 0 | C11: =IF($A11=1,OFFSET(C11,-1,0)+1,OFFSET(C11,-1,0)) -> n1 | D11: =IF($A11=1,0,IF($A11=2,OFFSET(D11,-1,0)+1,OFFSET(D11,-1,0))) -> n2 | E11: =IF(AND($A11<=2,$A11<>0),0,IF($A11=3,OFFSET(E11,-1,0)+1,OFFSET(E11,-1,0))) -> n3 | F11: =IF(AND($A11<=3,$A11<>0),0,IF($A11=4,OFFSET(F11,-1,0)+1,OFFSET(F11,-1,0))) -> n4 | G11: =IF(AND($A11<=4,$A11<>0),0,IF($A11="S",OFFSET(G11,-1,0)+1,OFFSET(G11,-1,0))) ->  | H11: =IF(OR($A11="S",$A11=0),0,MATCH(0,OFFSET($B11,1,$A11,ROW($A$27)-ROW($A11)),0)) -> 0 | I11: =IF(OR($A11="S",$A11=0),0,MATCH(OFFSET($B11,0,$A11)+1,OFFSET($B11,1,$A11,ROW($A$27)-ROW($A11)),0)) -> 0 | J11: Serviço | K11: =IF($A11=0,"-",CONCATENATE(C11&".",IF(AND($A$5>=2,$A11>=2),D11&".",""),IF(AND($A$5>=3,$A11>=3),E11&".",""),IF(AND($A$5>=4,$A11>=4),F11&".",""),IF($A11="S",G11&".",""))) ->  | N11: =IF($A11="S",Referencia.Descricao,"(digite a descrição aqui)") ->  | O11: =Referencia.Unidade ->  | R11: BDI 1 | S11: =IF($A11="S",IF($Q$10="Preço Unitário (R$)",PO.CustoUnitario,ROUND(PO.CustoUnitario*(1+$Z11),15-13*$X$6)),0) -> 0 | T11: =IF($A11="S",VTOTAL1,IF($A11=0,0,ROUND(SomaAgrup,15-13*$X$7))) -> 0 | U11: =IF($J11="","",IF($N11="","DESCRIÇÃO",IF(AND($J11="Serviço",$O11=""),"UNIDADE",IF($T11<=0,"SEM VALOR",IF(AND($Y11<>"",$Q11>$Y11),"ACIMA REF.",""))))) -> DESCRIÇÃO | V11: =IF(OR($A11=0,$A11="S",$A11>CFF!$A$9),"",MAX(V$12:OFFSET(V11,-1,0))+1) ->  | W11: =IF(AND($J11="Serviço",$M11<>""),IF($L11="",$M11,CONCATENATE($L11,"-",$M11))) -> FALSE | X11: =IF(AND(Fonte<>"",Código<>""),MATCH(Fonte&" "&IF(Fonte="sinapi",SUBSTITUTE(SUBSTITUTE(Código,"/00","/"),"/0","/"),Código),INDIRECT("'[Referência "&_xlnm.Database&".xls]Banco'!$a:$a"),0),"X") -> X | Y11: =IF(Import.Desoneracao="sim",Referencia.Desonerado,Referencia.NaoDesonerado) -> 0 | Z11: =ROUND(IF(ISNUMBER(R11),R11,IF(LEFT(R11,3)="BDI",HLOOKUP(R11,DADOS!$T$37:$X$38,2,FALSE),0)),15-11*$X$5) -> 0.22
A12: 0 | B12: =COUNTA(OFFSET(B12,1,0):B$27) -> 14 | J12: =IF(OR(TipoOrçamento="LICITADO",TipoOrçamento="REPROGRAMADOAC"),"CTEF","LOTE") -> LOTE | K12: 0 | N12: =IF(TipoOrçamento="LICITADO",DADOS!O43,DADOS!G38) -> 0 | T12: =SUMIF(OFFSET($J12,1,0,ROW(T27)-ROW(T12)-1),"Serviço",OFFSET(T12,1,0,ROW(T27)-ROW(T12)-1)) -> 161021.21 | U12: =IF($N12=0,"DESCRIÇÃO","") -> DESCRIÇÃO | V12: 0
A13: =CHOOSE(1+LOG(1+2*(J13="Meta")+4*(J13="Nível 2")+8*(J13="Nível 3")+16*(J13="Nível 4")+32*(J13="Serviço"),2),0,1,2,3,4,"S") -> 1 | B13: =IF(OR(A13="S",A13=0),0,IF(ISERROR(I13),H13,SMALL(H13:I13,1))) -> 14 | C13: =IF($A13=1,OFFSET(C13,-1,0)+1,OFFSET(C13,-1,0)) -> 1 | D13: =IF($A13=1,0,IF($A13=2,OFFSET(D13,-1,0)+1,OFFSET(D13,-1,0))) -> 0 | E13: =IF(AND($A13<=2,$A13<>0),0,IF($A13=3,OFFSET(E13,-1,0)+1,OFFSET(E13,-1,0))) -> 0 | F13: =IF(AND($A13<=3,$A13<>0),0,IF($A13=4,OFFSET(F13,-1,0)+1,OFFSET(F13,-1,0))) -> 0 | G13: =IF(AND($A13<=4,$A13<>0),0,IF($A13="S",OFFSET(G13,-1,0)+1,OFFSET(G13,-1,0))) -> 0 | H13: =IF(OR($A13="S",$A13=0),0,MATCH(0,OFFSET($B13,1,$A13,ROW($A$27)-ROW($A13)),0)) -> 14 | I13: =IF(OR($A13="S",$A13=0),0,MATCH(OFFSET($B13,0,$A13)+1,OFFSET($B13,1,$A13,ROW($A$27)-ROW($A13)),0)) ->  | J13: Meta | K13: =IF($A13=0,"-",CONCATENATE(C13&".",IF(AND($A$5>=2,$A13>=2),D13&".",""),IF(AND($A$5>=3,$A13>=3),E13&".",""),IF(AND($A$5>=4,$A13>=4),F13&".",""),IF($A13="S",G13&".",""))) -> 1. | N13: RUA SÃO LOURENÇO | P13: 0 | R13: BDI 1 | S13: =IF($A13="S",IF($Q$10="Preço Unitário (R$)",PO.CustoUnitario,ROUND(PO.CustoUnitario*(1+$Z13),15-13*$X$6)),0) -> 0 | T13: =IF($A13="S",VTOTAL1,IF($A13=0,0,ROUND(SomaAgrup,15-13*$X$7))) -> 161021.21 | U13: =IF($J13="","",IF($N13="","DESCRIÇÃO",IF(AND($J13="Serviço",$O13=""),"UNIDADE",IF($T13<=0,"SEM VALOR",IF(AND($Y13<>"",$Q13>$Y13),"ACIMA REF.",""))))) ->  | V13: =IF(OR($A13=0,$A13="S",$A13>CFF!$A$9),"",MAX(V$12:OFFSET(V13,-1,0))+1) -> 1 | W13: =IF(AND($J13="Serviço",$M13<>""),IF($L13="",$M13,CONCATENATE($L13,"-",$M13))) -> FALSE | X13: =IF(AND(Fonte<>"",Código<>""),MATCH(Fonte&" "&IF(Fonte="sinapi",SUBSTITUTE(SUBSTITUTE(Código,"/00","/"),"/0","/"),Código),INDIRECT("'[Referência "&_xlnm.Database&".xls]Banco'!$a:$a"),0),"X") -> X | Y13: =IF(Import.Desoneracao="sim",Referencia.Desonerado,Referencia.NaoDesonerado) -> 0 | Z13: =ROUND(IF(ISNUMBER(R13),R13,IF(LEFT(R13,3)="BDI",HLOOKUP(R13,DADOS!$T$37:$X$38,2,FALSE),0)),15-11*$X$5) -> 0.22
A14: S | B14: 0 | C14: 1 | D14: 0 | E14: 0 | F14: 0 | G14: 1 | H14: =IF(OR($A14="S",$A14=0),0,MATCH(0,OFFSET($B14,1,$A14,ROW($A$27)-ROW($A14)),0)) -> 0 | I14: =IF(OR($A14="S",$A14=0),0,MATCH(OFFSET($B14,0,$A14)+1,OFFSET($B14,1,$A14,ROW($A$27)-ROW($A14)),0)) -> 0 | J14: Serviço | K14: 1.0.1. | N14: PAVIMENTAÇÃO ASFÁLTICA SOBRE PEDRAS IRREGULARES | P14: 0 | R14: BDI 1 | S14: 0 | T14: 0 | U14: UNIDADE | V14: =IF(OR($A14=0,$A14="S",$A14>CFF!$A$9),"",MAX(V$12:OFFSET(V14,-1,0))+1) ->  | W14: FALSE | X14: X | Y14: 0 | Z14: =ROUND(IF(ISNUMBER(R14),R14,IF(LEFT(R14,3)="BDI",HLOOKUP(R14,DADOS!$T$37:$X$38,2,FALSE),0)),15-11*$X$5) -> 0.22
A15: 2 | B15: 2 | C15: 1 | D15: 1 | E15: 0 | F15: 0 | G15: 0 | H15: =IF(OR($A15="S",$A15=0),0,MATCH(0,OFFSET($B15,1,$A15,ROW($A$27)-ROW($A15)),0)) -> 12 | I15: =IF(OR($A15="S",$A15=0),0,MATCH(OFFSET($B15,0,$A15)+1,OFFSET($B15,1,$A15,ROW($A$27)-ROW($A15)),0)) -> 2 | J15: Nível 2 | K15: 1.1. | N15: SERVIÇOS PRELIMINARES | P15: 0 | R15: BDI 1 | S15: 0 | T15: 4462.57 | V15: =IF(OR($A15=0,$A15="S",$A15>CFF!$A$9),"",MAX(V$12:OFFSET(V15,-1,0))+1) ->  | W15: FALSE | X15: X | Y15: 0 | Z15: =ROUND(IF(ISNUMBER(R15),R15,IF(LEFT(R15,3)="BDI",HLOOKUP(R15,DADOS!$T$37:$X$38,2,FALSE),0)),15-11*$X$5) -> 0.22
A16: =CHOOSE(1+LOG(1+2*(J16="Meta")+4*(J16="Nível 2")+8*(J16="Nível 3")+16*(J16="Nível 4")+32*(J16="Serviço"),2),0,1,2,3,4,"S") -> S | B16: =IF(OR(A16="S",A16=0),0,IF(ISERROR(I16),H16,SMALL(H16:I16,1))) -> 0 | C16: =IF($A16=1,OFFSET(C16,-1,0)+1,OFFSET(C16,-1,0)) -> 1 | D16: =IF($A16=1,0,IF($A16=2,OFFSET(D16,-1,0)+1,OFFSET(D16,-1,0))) -> 1 | E16: =IF(AND($A16<=2,$A16<>0),0,IF($A16=3,OFFSET(E16,-1,0)+1,OFFSET(E16,-1,0))) -> 0 | F16: =IF(AND($A16<=3,$A16<>0),0,IF($A16=4,OFFSET(F16,-1,0)+1,OFFSET(F16,-1,0))) -> 0 | G16: =IF(AND($A16<=4,$A16<>0),0,IF($A16="S",OFFSET(G16,-1,0)+1,OFFSET(G16,-1,0))) -> 1 | H16: =IF(OR($A16="S",$A16=0),0,MATCH(0,OFFSET($B16,1,$A16,ROW($A$27)-ROW($A16)),0)) -> 0 | I16: =IF(OR($A16="S",$A16=0),0,MATCH(OFFSET($B16,0,$A16)+1,OFFSET($B16,1,$A16,ROW($A$27)-ROW($A16)),0)) -> 0 | J16: Serviço | K16: =IF($A16=0,"-",CONCATENATE(C16&".",IF(AND($A$5>=2,$A16>=2),D16&".",""),IF(AND($A$5>=3,$A16>=3),E16&".",""),IF(AND($A$5>=4,$A16>=4),F16&".",""),IF($A16="S",G16&".",""))) -> 1.1.1. | L16: SINAPI | M16: 99814 | N16: =IF($A16="S",Referencia.Descricao,"(digite a descrição aqui)") -> LIMPEZA DE SUPERFÍCIE COM JATO DE ALTA PRESSÃO. AF_04/2019 | O16: =Referencia.Unidade -> M2 | P16: 2386.4 | Q16: 1.53 | R16: BDI 1 | S16: =IF($A16="S",IF($Q$10="Preço Unitário (R$)",PO.CustoUnitario,ROUND(PO.CustoUnitario*(1+$Z16),15-13*$X$6)),0) -> 1.87 | T16: =IF($A16="S",VTOTAL1,IF($A16=0,0,ROUND(SomaAgrup,15-13*$X$7))) -> 4462.57 | U16: =IF($J16="","",IF($N16="","DESCRIÇÃO",IF(AND($J16="Serviço",$O16=""),"UNIDADE",IF($T16<=0,"SEM VALOR",IF(AND($Y16<>"",$Q16>$Y16),"ACIMA REF.",""))))) ->  | V16: =IF(OR($A16=0,$A16="S",$A16>CFF!$A$9),"",MAX(V$12:OFFSET(V16,-1,0))+1) ->  | W16: =IF(AND($J16="Serviço",$M16<>""),IF($L16="",$M16,CONCATENATE($L16,"-",$M16))) -> SINAPI-99814 | X16: =IF(AND(Fonte<>"",Código<>""),MATCH(Fonte&" "&IF(Fonte="sinapi",SUBSTITUTE(SUBSTITUTE(Código,"/00","/"),"/0","/"),Código),INDIRECT("'[Referência "&_xlnm.Database&".xls]Banco'!$a:$a"),0),"X") -> 6022 | Y16: =IF(Import.Desoneracao="sim",Referencia.Desonerado,Referencia.NaoDesonerado) -> 1.53 | Z16: =ROUND(IF(ISNUMBER(R16),R16,IF(LEFT(R16,3)="BDI",HLOOKUP(R16,DADOS!$T$37:$X$38,2,FALSE),0)),15-11*$X$5) -> 0.22
A17: 2 | B17: 6 | C17: 1 | D17: 2 | E17: 0 | F17: 0 | G17: 0 | H17: =IF(OR($A17="S",$A17=0),0,MATCH(0,OFFSET($B17,1,$A17,ROW($A$27)-ROW($A17)),0)) -> 10 | I17: =IF(OR($A17="S",$A17=0),0,MATCH(OFFSET($B17,0,$A17)+1,OFFSET($B17,1,$A17,ROW($A$27)-ROW($A17)),0)) -> 6 | J17: Nível 2 | K17: 1.2. | N17: PAVIMENTAÇÃO | P17: 0 | R17: BDI 1 | S17: 0 | T17: 154245.84 | V17: =IF(OR($A17=0,$A17="S",$A17>CFF!$A$9),"",MAX(V$12:OFFSET(V17,-1,0))+1) ->  | W17: FALSE | X17: X | Y17: 0 | Z17: =ROUND(IF(ISNUMBER(R17),R17,IF(LEFT(R17,3)="BDI",HLOOKUP(R17,DADOS!$T$37:$X$38,2,FALSE),0)),15-11*$X$5) -> 0.22
A18: S | B18: 0 | C18: 1 | D18: 2 | E18: 0 | F18: 0 | G18: 1 | H18: =IF(OR($A18="S",$A18=0),0,MATCH(0,OFFSET($B18,1,$A18,ROW($A$27)-ROW($A18)),0)) -> 0 | I18: =IF(OR($A18="S",$A18=0),0,MATCH(OFFSET($B18,0,$A18)+1,OFFSET($B18,1,$A18,ROW($A$27)-ROW($A18)),0)) -> 0 | J18: Serviço | K18: 1.2.1. | L18: SINAPI | M18: 96402 | N18: Pintura de Ligação com Emulsão RR-2 C taxa de 0,6 L/m² | O18: m² | P18: 2386.4 | Q18: 1.4 | R18: BDI 1 | S18: 1.71 | T18: 4080.74 | V18: =IF(OR($A18=0,$A18="S",$A18>CFF!$A$9),"",MAX(V$12:OFFSET(V18,-1,0))+1) ->  | W18: SINAPI-96402 | X18: 5221 | Y18: 1.69 | Z18: =ROUND(IF(ISNUMBER(R18),R18,IF(LEFT(R18,3)="BDI",HLOOKUP(R18,DADOS!$T$37:$X$38,2,FALSE),0)),15-11*$X$5) -> 0.22
A19: S | B19: 0 | C19: 1 | D19: 2 | E19: 0 | F19: 0 | G19: 2 | H19: =IF(OR($A19="S",$A19=0),0,MATCH(0,OFFSET($B19,1,$A19,ROW($A$27)-ROW($A19)),0)) -> 0 | I19: =IF(OR($A19="S",$A19=0),0,MATCH(OFFSET($B19,0,$A19)+1,OFFSET($B19,1,$A19,ROW($A$27)-ROW($A19)),0)) -> 0 | J19: Serviço | K19: 1.2.2. | L19: SINAPI | M19: 95996 | N19: Construção de pavimento com aplicação de concreto betuminoso usinado a quente (CBUQ), binder, com espessura de 3,0 cm exclusive transporte. AF_11/2019 | O19: m³ | P19: 71.59 | Q19: 672 | R19: BDI 1 | S19: 819.84 | T19: 58692.35 | V19: =IF(OR($A19=0,$A19="S",$A19>CFF!$A$9),"",MAX(V$12:OFFSET(V19,-1,0))+1) ->  | W19: SINAPI-95996 | X19: 5275 | Y19: 863.16 | Z19: =ROUND(IF(ISNUMBER(R19),R19,IF(LEFT(R19,3)="BDI",HLOOKUP(R19,DADOS!$T$37:$X$38,2,FALSE),0)),15-11*$X$5) -> 0.22
A20: =CHOOSE(1+LOG(1+2*(J20="Meta")+4*(J20="Nível 2")+8*(J20="Nível 3")+16*(J20="Nível 4")+32*(J20="Serviço"),2),0,1,2,3,4,"S") -> S | B20: =IF(OR(A20="S",A20=0),0,IF(ISERROR(I20),H20,SMALL(H20:I20,1))) -> 0 | C20: =IF($A20=1,OFFSET(C20,-1,0)+1,OFFSET(C20,-1,0)) -> 1 | D20: =IF($A20=1,0,IF($A20=2,OFFSET(D20,-1,0)+1,OFFSET(D20,-1,0))) -> 2 | E20: =IF(AND($A20<=2,$A20<>0),0,IF($A20=3,OFFSET(E20,-1,0)+1,OFFSET(E20,-1,0))) -> 0 | F20: =IF(AND($A20<=3,$A20<>0),0,IF($A20=4,OFFSET(F20,-1,0)+1,OFFSET(F20,-1,0))) -> 0 | G20: =IF(AND($A20<=4,$A20<>0),0,IF($A20="S",OFFSET(G20,-1,0)+1,OFFSET(G20,-1,0))) -> 3 | H20: =IF(OR($A20="S",$A20=0),0,MATCH(0,OFFSET($B20,1,$A20,ROW($A$27)-ROW($A20)),0)) -> 0 | I20: =IF(OR($A20="S",$A20=0),0,MATCH(OFFSET($B20,0,$A20)+1,OFFSET($B20,1,$A20,ROW($A$27)-ROW($A20)),0)) -> 0 | J20: Serviço | K20: =IF($A20=0,"-",CONCATENATE(C20&".",IF(AND($A$5>=2,$A20>=2),D20&".",""),IF(AND($A$5>=3,$A20>=3),E20&".",""),IF(AND($A$5>=4,$A20>=4),F20&".",""),IF($A20="S",G20&".",""))) -> 1.2.3. | L20: SINAPI | M20: 96402 | N20: Pintura de Ligação com Emulsão RR-2 C taxa de 0,6 L/m² | O20: m² | P20: 2386.4 | Q20: 1.4 | R20: BDI 1 | S20: =IF($A20="S",IF($Q$10="Preço Unitário (R$)",PO.CustoUnitario,ROUND(PO.CustoUnitario*(1+$Z20),15-13*$X$6)),0) -> 1.71 | T20: =IF($A20="S",VTOTAL1,IF($A20=0,0,ROUND(SomaAgrup,15-13*$X$7))) -> 4080.74 | U20: =IF($J20="","",IF($N20="","DESCRIÇÃO",IF(AND($J20="Serviço",$O20=""),"UNIDADE",IF($T20<=0,"SEM VALOR",IF(AND($Y20<>"",$Q20>$Y20),"ACIMA REF.",""))))) ->  | V20: =IF(OR($A20=0,$A20="S",$A20>CFF!$A$9),"",MAX(V$12:OFFSET(V20,-1,0))+1) ->  | W20: =IF(AND($J20="Serviço",$M20<>""),IF($L20="",$M20,CONCATENATE($L20,"-",$M20))) -> SINAPI-96402 | X20: =IF(AND(Fonte<>"",Código<>""),MATCH(Fonte&" "&IF(Fonte="sinapi",SUBSTITUTE(SUBSTITUTE(Código,"/00","/"),"/0","/"),Código),INDIRECT("'[Referência "&_xlnm.Database&".xls]Banco'!$a:$a"),0),"X") -> 5221 | Y20: =IF(Import.Desoneracao="sim",Referencia.Desonerado,Referencia.NaoDesonerado) -> 1.69 | Z20: =ROUND(IF(ISNUMBER(R20),R20,IF(LEFT(R20,3)="BDI",HLOOKUP(R20,DADOS!$T$37:$X$38,2,FALSE),0)),15-11*$X$5) -> 0.22
A21: S | B21: 0 | C21: 1 | D21: 2 | E21: 0 | F21: 0 | G21: 4 | H21: =IF(OR($A21="S",$A21=0),0,MATCH(0,OFFSET($B21,1,$A21,ROW($A$27)-ROW($A21)),0)) -> 0 | I21: =IF(OR($A21="S",$A21=0),0,MATCH(OFFSET($B21,0,$A21)+1,OFFSET($B21,1,$A21,ROW($A$27)-ROW($A21)),0)) -> 0 | J21: Serviço | K21: 1.2.4. | L21: SINAPI | M21: 95995 | N21: Capa Asfáltica em CBUQ espessura de 4 cm | O21: m³ | P21: 95.46 | Q21: 722 | R21: BDI 1 | S21: 880.84 | T21: 84084.99 | V21: =IF(OR($A21=0,$A21="S",$A21>CFF!$A$9),"",MAX(V$12:OFFSET(V21,-1,0))+1) ->  | W21: SINAPI-95995 | X21: 5274 | Y21: 910.22 | Z21: =ROUND(IF(ISNUMBER(R21),R21,IF(LEFT(R21,3)="BDI",HLOOKUP(R21,DADOS!$T$37:$X$38,2,FALSE),0)),15-11*$X$5) -> 0.22
A22: S | B22: 0 | C22: 1 | D22: 2 | E22: 0 | F22: 0 | G22: 5 | H22: =IF(OR($A22="S",$A22=0),0,MATCH(0,OFFSET($B22,1,$A22,ROW($A$27)-ROW($A22)),0)) -> 0 | I22: =IF(OR($A22="S",$A22=0),0,MATCH(OFFSET($B22,0,$A22)+1,OFFSET($B22,1,$A22,ROW($A$27)-ROW($A22)),0)) -> 0 | J22: Serviço | K22: 1.2.5. | L22: SINAPI | M22: 95427 | N22: Transporte comercial com caminhão basculante 18 m³, via pavimentada DMT acima de 30Km (unidade:m³xKm). AF_09/2016 DMT=43km | O22: m³xKm | P22: 7189.17 | Q22: 0.38 | R22: BDI 1 | S22: 0.46 | T22: 3307.02 | V22: =IF(OR($A22=0,$A22="S",$A22>CFF!$A$9),"",MAX(V$12:OFFSET(V22,-1,0))+1) ->  | W22: SINAPI-95427 | X22: 6123 | Y22: 0.4 | Z22: =ROUND(IF(ISNUMBER(R22),R22,IF(LEFT(R22,3)="BDI",HLOOKUP(R22,DADOS!$T$37:$X$38,2,FALSE),0)),15-11*$X$5) -> 0.22
A23: 2 | B23: 2 | C23: 1 | D23: 3 | E23: 0 | F23: 0 | G23: 0 | H23: =IF(OR($A23="S",$A23=0),0,MATCH(0,OFFSET($B23,1,$A23,ROW($A$27)-ROW($A23)),0)) -> 4 | I23: =IF(OR($A23="S",$A23=0),0,MATCH(OFFSET($B23,0,$A23)+1,OFFSET($B23,1,$A23,ROW($A$27)-ROW($A23)),0)) -> 2 | J23: Nível 2 | K23: 1.3. | N23: PINTURA E SINALIZAÇÃO | P23: 0 | R23: BDI 1 | S23: 0 | T23: 1812.62 | V23: =IF(OR($A23=0,$A23="S",$A23>CFF!$A$9),"",MAX(V$12:OFFSET(V23,-1,0))+1) ->  | W23: FALSE | X23: X | Y23: 0 | Z23: =ROUND(IF(ISNUMBER(R23),R23,IF(LEFT(R23,3)="BDI",HLOOKUP(R23,DADOS!$T$37:$X$38,2,FALSE),0)),15-11*$X$5) -> 0.22
A24: S | B24: 0 | C24: 1 | D24: 3 | E24: 0 | F24: 0 | G24: 1 | H24: =IF(OR($A24="S",$A24=0),0,MATCH(0,OFFSET($B24,1,$A24,ROW($A$27)-ROW($A24)),0)) -> 0 | I24: =IF(OR($A24="S",$A24=0),0,MATCH(OFFSET($B24,0,$A24)+1,OFFSET($B24,1,$A24,ROW($A$27)-ROW($A24)),0)) -> 0 | J24: Serviço | K24: 1.3.1. | L24: SINAPI | M24: 72947 | N24: Pintura de faixa de pedestres e sinalização horizontal com tinta retrorefletiva a base de resina acrilica com microesferas de vidro | O24: m² | P24: 141.5 | Q24: 10.5 | R24: BDI 1 | S24: 12.81 | T24: 1812.62 | V24: =IF(OR($A24=0,$A24="S",$A24>CFF!$A$9),"",MAX(V$12:OFFSET(V24,-1,0))+1) ->  | W24: SINAPI-72947 | X24: 5272 | Y24: 12.95 | Z24: =ROUND(IF(ISNUMBER(R24),R24,IF(LEFT(R24,3)="BDI",HLOOKUP(R24,DADOS!$T$37:$X$38,2,FALSE),0)),15-11*$X$5) -> 0.22
A25: 2 | B25: 2 | C25: 1 | D25: 4 | E25: 0 | F25: 0 | G25: 0 | H25: =IF(OR($A25="S",$A25=0),0,MATCH(0,OFFSET($B25,1,$A25,ROW($A$27)-ROW($A25)),0)) -> 2 | I25: =IF(OR($A25="S",$A25=0),0,MATCH(OFFSET($B25,0,$A25)+1,OFFSET($B25,1,$A25,ROW($A$27)-ROW($A25)),0)) ->  | J25: Nível 2 | K25: 1.4. | N25: SERVIÇOS COMPLEMENTARES - LIMPEZA FINAL DE OBRA | P25: 0 | R25: BDI 1 | S25: 0 | T25: 500.18 | V25: =IF(OR($A25=0,$A25="S",$A25>CFF!$A$9),"",MAX(V$12:OFFSET(V25,-1,0))+1) ->  | W25: FALSE | X25: X | Y25: 0 | Z25: =ROUND(IF(ISNUMBER(R25),R25,IF(LEFT(R25,3)="BDI",HLOOKUP(R25,DADOS!$T$37:$X$38,2,FALSE),0)),15-11*$X$5) -> 0.22
A26: S | B26: 0 | C26: 1 | D26: 4 | E26: 0 | F26: 0 | G26: 1 | H26: =IF(OR($A26="S",$A26=0),0,MATCH(0,OFFSET($B26,1,$A26,ROW($A$27)-ROW($A26)),0)) -> 0 | I26: =IF(OR($A26="S",$A26=0),0,MATCH(OFFSET($B26,0,$A26)+1,OFFSET($B26,1,$A26,ROW($A$27)-ROW($A26)),0)) -> 0 | J26: Serviço | K26: 1.4.1. | L26: SINAPI | M26: 5901 | N26: Caminhão Pipa, 10.000 L, inclusive tanque de aço para o transporte de água. | O26: chp | P26: 2.62 | Q26: 156.48 | R26: BDI 1 | S26: 190.91 | T26: 500.18 | V26: =IF(OR($A26=0,$A26="S",$A26>CFF!$A$9),"",MAX(V$12:OFFSET(V26,-1,0))+1) ->  | W26: SINAPI-5901 | X26: 335 | Y26: 166.2 | Z26: =ROUND(IF(ISNUMBER(R26),R26,IF(LEFT(R26,3)="BDI",HLOOKUP(R26,DADOS!$T$37:$X$38,2,FALSE),0)),15-11*$X$5) -> 0.22
A27: -1 | C27: 0 | D27: 0 | E27: 0 | F27: 0 | G27: 0
K28: Encargos sociais: | M28: Para elaboração deste orçamento, foram utilizados os encargos sociais do SINAPI para a Unidade da Federação indicada.
K30: Observações:
K35: =IF(AND($X$3=FALSE,$X$4=FALSE,$X$5=FALSE,$X$6=FALSE,$X$7=FALSE),"Não foi considerado arredondamento nos valores da planilha.",CONCATENATE("Foi considerado arredondamento de duas casas decimais para ",IF($X$3=TRUE,"Quantidade; ",""),IF($X$4=TRUE,"Custo Unitário; ",""),IF($X$5=TRUE,"BDI; ",""),IF($X$6=TRUE,"Preço Unitário; ",""),IF($X$7=TRUE,"Preço Total.",""))) -> Foi considerado arredondamento de duas casas decimais para Quantidade; Custo Unitário; BDI; Preço Unitário; Preço Total.
K38: =Import.Município -> Tunápolis/SC
K39: Local
K41: =TODAY() -> 2020-10-20
K42: Data

Sheet PLQ (hidden)
E1: PLQ - | F1: PLANILHA DE LEVANTAMENTO DE QUANTIDADES
E7: =OFFSET(PO!$P$12,ROW($E7)-ROW(E$12),0) -> 0
E9: - | F9: Única
A10: Nível | B10: Item | C10: Descrição | D10: Unid. | E10: Quantidade | F10: =IF(OFFSET(F10,0,-1)="Quantidade",1,OFFSET(F10,0,-1)+1) -> 1 | G10: 2 | H10: 3 | I10: 4 | J10: 5 | K10: 6 | L10: 7 | M10: 8 | N10: 9 | O10: 10 | U10: =IF(OFFSET(U10,0,-1)="Quantidade",1,OFFSET(U10,0,-1)+1) -> 1
A11: =OFFSET(PO!J$12,ROW(A11)-ROW($A$12),0) -> Serviço | B11: =IF($A11=0,"",OFFSET(PO!K$12,ROW(B11)-ROW(B$12),0)) ->  | C11: =IF(OFFSET(PO!N$12,ROW(C11)-ROW(C$12),0)=0,"",OFFSET(PO!N$12,ROW(C11)-ROW(C$12),0)) ->  | D11: =IF(OFFSET(PO!O$12,ROW(D11)-ROW(D$12),0)=0,"",OFFSET(PO!O$12,ROW(D11)-ROW(D$12),0)) ->  | E11: =IF($A11<>"Serviço",0,ROUND(SUMIF($F$9:$P$9,"<>",$F11:$P11),15-13*PO!$X$3)) -> 0 | F11: =OFFSET(PO!$P$12,ROW($E11)-ROW(F$12),0) -> 0
A12: =PO!J12 -> LOTE | C12: =PO!N12 -> 0
A13: =OFFSET(PO!J$12,ROW(A13)-ROW($A$12),0) -> Meta | B13: =IF($A13=0,"",OFFSET(PO!K$12,ROW(B13)-ROW(B$12),0)) -> 1. | C13: =IF(OFFSET(PO!N$12,ROW(C13)-ROW(C$12),0)=0,"",OFFSET(PO!N$12,ROW(C13)-ROW(C$12),0)) -> RUA SÃO LOURENÇO | D13: =IF(OFFSET(PO!O$12,ROW(D13)-ROW(D$12),0)=0,"",OFFSET(PO!O$12,ROW(D13)-ROW(D$12),0)) ->  | E13: =IF($A13<>"Serviço",0,ROUND(SUMIF($F$9:$P$9,"<>",$F13:$P13),15-13*PO!$X$3)) -> 0 | F13: 0
A14: =OFFSET(PO!J$12,ROW(A14)-ROW($A$12),0) -> Serviço | B14: =IF($A14=0,"",OFFSET(PO!K$12,ROW(B14)-ROW(B$12),0)) -> 1.0.1. | C14: =IF(OFFSET(PO!N$12,ROW(C14)-ROW(C$12),0)=0,"",OFFSET(PO!N$12,ROW(C14)-ROW(C$12),0)) -> PAVIMENTAÇÃO ASFÁLTICA SOBRE PEDRAS IRREGULARES | D14: =IF(OFFSET(PO!O$12,ROW(D14)-ROW(D$12),0)=0,"",OFFSET(PO!O$12,ROW(D14)-ROW(D$12),0)) ->  | E14: =IF($A14<>"Serviço",0,ROUND(SUMIF($F$9:$P$9,"<>",$F14:$P14),15-13*PO!$X$3)) -> 0 | F14: 0
A15: =OFFSET(PO!J$12,ROW(A15)-ROW($A$12),0) -> Nível 2 | B15: =IF($A15=0,"",OFFSET(PO!K$12,ROW(B15)-ROW(B$12),0)) -> 1.1. | C15: =IF(OFFSET(PO!N$12,ROW(C15)-ROW(C$12),0)=0,"",OFFSET(PO!N$12,ROW(C15)-ROW(C$12),0)) -> SERVIÇOS PRELIMINARES | D15: =IF(OFFSET(PO!O$12,ROW(D15)-ROW(D$12),0)=0,"",OFFSET(PO!O$12,ROW(D15)-ROW(D$12),0)) ->  | E15: =IF($A15<>"Serviço",0,ROUND(SUMIF($F$9:$P$9,"<>",$F15:$P15),15-13*PO!$X$3)) -> 0 | F15: 0
A16: =OFFSET(PO!J$12,ROW(A16)-ROW($A$12),0) -> Serviço | B16: =IF($A16=0,"",OFFSET(PO!K$12,ROW(B16)-ROW(B$12),0)) -> 1.1.1. | C16: =IF(OFFSET(PO!N$12,ROW(C16)-ROW(C$12),0)=0,"",OFFSET(PO!N$12,ROW(C16)-ROW(C$12),0)) -> LIMPEZA DE SUPERFÍCIE COM JATO DE ALTA PRESSÃO. AF_04/2019 | D16: =IF(OFFSET(PO!O$12,ROW(D16)-ROW(D$12),0)=0,"",OFFSET(PO!O$12,ROW(D16)-ROW(D$12),0)) -> M2 | E16: =IF($A16<>"Serviço",0,ROUND(SUMIF($F$9:$P$9,"<>",$F16:$P16),15-13*PO!$X$3)) -> 2386.4 | F16: =OFFSET(PO!$P$12,ROW($E16)-ROW(F$12),0) -> 2386.4
A17: =OFFSET(PO!J$12,ROW(A17)-ROW($A$12),0) -> Nível 2 | B17: =IF($A17=0,"",OFFSET(PO!K$12,ROW(B17)-ROW(B$12),0)) -> 1.2. | C17: =IF(OFFSET(PO!N$12,ROW(C17)-ROW(C$12),0)=0,"",OFFSET(PO!N$12,ROW(C17)-ROW(C$12),0)) -> PAVIMENTAÇÃO | D17: =IF(OFFSET(PO!O$12,ROW(D17)-ROW(D$12),0)=0,"",OFFSET(PO!O$12,ROW(D17)-ROW(D$12),0)) ->  | E17: =IF($A17<>"Serviço",0,ROUND(SUMIF($F$9:$P$9,"<>",$F17:$P17),15-13*PO!$X$3)) -> 0 | F17: 0
A18: =OFFSET(PO!J$12,ROW(A18)-ROW($A$12),0) -> Serviço | B18: =IF($A18=0,"",OFFSET(PO!K$12,ROW(B18)-ROW(B$12),0)) -> 1.2.1. | C18: =IF(OFFSET(PO!N$12,ROW(C18)-ROW(C$12),0)=0,"",OFFSET(PO!N$12,ROW(C18)-ROW(C$12),0)) -> Pintura de Ligação com Emulsão RR-2 C taxa de 0,6 L/m² | D18: =IF(OFFSET(PO!O$12,ROW(D18)-ROW(D$12),0)=0,"",OFFSET(PO!O$12,ROW(D18)-ROW(D$12),0)) -> m² | E18: =IF($A18<>"Serviço",0,ROUND(SUMIF($F$9:$P$9,"<>",$F18:$P18),15-13*PO!$X$3)) -> 1522 | F18: 1522
A19: =OFFSET(PO!J$12,ROW(A19)-ROW($A$12),0) -> Serviço | B19: =IF($A19=0,"",OFFSET(PO!K$12,ROW(B19)-ROW(B$12),0)) -> 1.2.2. | C19: =IF(OFFSET(PO!N$12,ROW(C19)-ROW(C$12),0)=0,"",OFFSET(PO!N$12,ROW(C19)-ROW(C$12),0)) -> Construção de pavimento com aplicação de concreto betuminoso usinado a quente (CBUQ), binder, com espessura de 3,0 cm exclusive transporte. AF_11/2019 | D19: =IF(OFFSET(PO!O$12,ROW(D19)-ROW(D$12),0)=0,"",OFFSET(PO!O$12,ROW(D19)-ROW(D$12),0)) -> m³ | E19: =IF($A19<>"Serviço",0,ROUND(SUMIF($F$9:$P$9,"<>",$F19:$P19),15-13*PO!$X$3)) -> 46.13 | F19: 46.13
A20: =OFFSET(PO!J$12,ROW(A20)-ROW($A$12),0) -> Serviço | B20: =IF($A20=0,"",OFFSET(PO!K$12,ROW(B20)-ROW(B$12),0)) -> 1.2.3. | C20: =IF(OFFSET(PO!N$12,ROW(C20)-ROW(C$12),0)=0,"",OFFSET(PO!N$12,ROW(C20)-ROW(C$12),0)) -> Pintura de Ligação com Emulsão RR-2 C taxa de 0,6 L/m² | D20: =IF(OFFSET(PO!O$12,ROW(D20)-ROW(D$12),0)=0,"",OFFSET(PO!O$12,ROW(D20)-ROW(D$12),0)) -> m² | E20: =IF($A20<>"Serviço",0,ROUND(SUMIF($F$9:$P$9,"<>",$F20:$P20),15-13*PO!$X$3)) -> 2386.4 | F20: =OFFSET(PO!$P$12,ROW($E20)-ROW(F$12),0) -> 2386.4
A21: =OFFSET(PO!J$12,ROW(A21)-ROW($A$12),0) -> Serviço | B21: =IF($A21=0,"",OFFSET(PO!K$12,ROW(B21)-ROW(B$12),0)) -> 1.2.4. | C21: =IF(OFFSET(PO!N$12,ROW(C21)-ROW(C$12),0)=0,"",OFFSET(PO!N$12,ROW(C21)-ROW(C$12),0)) -> Capa Asfáltica em CBUQ espessura de 4 cm | D21: =IF(OFFSET(PO!O$12,ROW(D21)-ROW(D$12),0)=0,"",OFFSET(PO!O$12,ROW(D21)-ROW(D$12),0)) -> m³ | E21: =IF($A21<>"Serviço",0,ROUND(SUMIF($F$9:$P$9,"<>",$F21:$P21),15-13*PO!$X$3)) -> 61.5 | F21: 61.5
A22: =OFFSET(PO!J$12,ROW(A22)-ROW($A$12),0) -> Serviço | B22: =IF($A22=0,"",OFFSET(PO!K$12,ROW(B22)-ROW(B$12),0)) -> 1.2.5. | C22: =IF(OFFSET(PO!N$12,ROW(C22)-ROW(C$12),0)=0,"",OFFSET(PO!N$12,ROW(C22)-ROW(C$12),0)) -> Transporte comercial com caminhão basculante 18 m³, via pavimentada DMT acima de 30Km (unidade:m³xKm). AF_09/2016 DMT=43km | D22: =IF(OFFSET(PO!O$12,ROW(D22)-ROW(D$12),0)=0,"",OFFSET(PO!O$12,ROW(D22)-ROW(D$12),0)) -> m³xKm | E22: =IF($A22<>"Serviço",0,ROUND(SUMIF($F$9:$P$9,"<>",$F22:$P22),15-13*PO!$X$3)) -> 11570.31 | F22: 11570.31
A23: =OFFSET(PO!J$12,ROW(A23)-ROW($A$12),0) -> Nível 2 | B23: =IF($A23=0,"",OFFSET(PO!K$12,ROW(B23)-ROW(B$12),0)) -> 1.3. | C23: =IF(OFFSET(PO!N$12,ROW(C23)-ROW(C$12),0)=0,"",OFFSET(PO!N$12,ROW(C23)-ROW(C$12),0)) -> PINTURA E SINALIZAÇÃO | D23: =IF(OFFSET(PO!O$12,ROW(D23)-ROW(D$12),0)=0,"",OFFSET(PO!O$12,ROW(D23)-ROW(D$12),0)) ->  | E23: =IF($A23<>"Serviço",0,ROUND(SUMIF($F$9:$P$9,"<>",$F23:$P23),15-13*PO!$X$3)) -> 0 | F23: 0
A24: =OFFSET(PO!J$12,ROW(A24)-ROW($A$12),0) -> Serviço | B24: =IF($A24=0,"",OFFSET(PO!K$12,ROW(B24)-ROW(B$12),0)) -> 1.3.1. | C24: =IF(OFFSET(PO!N$12,ROW(C24)-ROW(C$12),0)=0,"",OFFSET(PO!N$12,ROW(C24)-ROW(C$12),0)) -> Pintura de faixa de pedestres e sinalização horizontal com tinta retrorefletiva a base de resina acrilica com microesferas de vidro | D24: =IF(OFFSET(PO!O$12,ROW(D24)-ROW(D$12),0)=0,"",OFFSET(PO!O$12,ROW(D24)-ROW(D$12),0)) -> m² | E24: =IF($A24<>"Serviço",0,ROUND(SUMIF($F$9:$P$9,"<>",$F24:$P24),15-13*PO!$X$3)) -> 108.25 | F24: 108.25
A25: =OFFSET(PO!J$12,ROW(A25)-ROW($A$12),0) -> Nível 2 | B25: =IF($A25=0,"",OFFSET(PO!K$12,ROW(B25)-ROW(B$12),0)) -> 1.4. | C25: =IF(OFFSET(PO!N$12,ROW(C25)-ROW(C$12),0)=0,"",OFFSET(PO!N$12,ROW(C25)-ROW(C$12),0)) -> SERVIÇOS COMPLEMENTARES - LIMPEZA FINAL DE OBRA | D25: =IF(OFFSET(PO!O$12,ROW(D25)-ROW(D$12),0)=0,"",OFFSET(PO!O$12,ROW(D25)-ROW(D$12),0)) ->  | E25: =IF($A25<>"Serviço",0,ROUND(SUMIF($F$9:$P$9,"<>",$F25:$P25),15-13*PO!$X$3)) -> 0 | F25: 0
A26: =OFFSET(PO!J$12,ROW(A26)-ROW($A$12),0) -> Serviço | B26: =IF($A26=0,"",OFFSET(PO!K$12,ROW(B26)-ROW(B$12),0)) -> 1.4.1. | C26: =IF(OFFSET(PO!N$12,ROW(C26)-ROW(C$12),0)=0,"",OFFSET(PO!N$12,ROW(C26)-ROW(C$12),0)) -> Caminhão Pipa, 10.000 L, inclusive tanque de aço para o transporte de água. | D26: =IF(OFFSET(PO!O$12,ROW(D26)-ROW(D$12),0)=0,"",OFFSET(PO!O$12,ROW(D26)-ROW(D$12),0)) -> chp | E26: =IF($A26<>"Serviço",0,ROUND(SUMIF($F$9:$P$9,"<>",$F26:$P26),15-13*PO!$X$3)) -> 1522 | F26: 1522
B29: =PO!$K$38 -> Tunápolis/SC
B30: Local
B32: =PO!$K$41 -> 2020-10-20
B33: Data

Sheet CFF
O1: CFF - | P1: CRONOGRAMA FÍSICO-FINANCEIRO
P2: =CHOOSE(1+LOG(1+2*(TipoOrçamento="BASE")+4*(TipoOrçamento="LICITADO")+8*(TipoOrçamento="REPROGRAMADOAC")+16*(TipoOrçamento="REPROGRAMADONPL"),2),"nada","Cronograma Base para Licitação","Cronograma Licitado","Cronograma Licitado Reprogramado","Cronograma Base para Licitação - Reprogramado") -> Cronograma Base para Licitação
A8: Nível Máx Crono | L8: =IF(MAX($A$14:$A$22)<>MAX(PO!$V$12:$V$27),"ERRO: CRONOGRAMA DESATUALIZADO",IF(OR(COUNTIF($O$16:$X$16,">1")>0,OFFSET($X$17,0,-1)<>$N$14),"ERRO: CRONOGRAMA NÃO FECHA EM 100%","")) ->  | N8: =IF(TipoOrçamento="REPROGRAMADOAC","Qtde de Medições realizadas","") -> 
A9: 1 | N9: 1 | O9: =IF(AND(TipoOrçamento="REPROGRAMADOAC",$N$9>0),$N$9-1,0) -> 0 | P9: =OFFSET(P9,0,-1)+1 -> 1 | Q9: 2 | R9: 3 | S9: 4 | T9: 5 | U9: 6 | V9: 7 | W9: 8 | AC9: =OFFSET(AC9,0,-1)+1 -> 1
A10: Lista Crono | B10: Último Nível | C10: Nível | D10: Altura | E10: N1 | F10: N2 | G10: N3 | H10: N4 | I10: Czero | J10: Cnível | K10: VTOTAL SOMA | L10: Item | M10: Descrição das Metas / Macrosserviços | N10: Valores Totais (R$) | O10: =IF(TipoOrçamento="REPROGRAMADOAC","Reinício de Obra","Início de Obra")&CHAR(10)&TEXT(DADOS!A48,"dd/mm/aa") -> Início de Obra 09/11/20 | P10: =IF(AND(TipoOrçamento="REPROGRAMADOAC",$N$9>0,N10="Valores Totais (R$)"),"Parcela "&$N$9&" Executado","Parcela "&P$9&CHAR(10)&TEXT(DATE(YEAR(DADOS!$A$48),MONTH(DADOS!$A$48)+P$9-IF(AND(TipoOrçamento="REPROGRAMADOAC",$N$9>0),$N$9,0),1),"mmm/aa")) -> Parcela 1 dez/20 | Q10: =IF(AND(TipoOrçamento="REPROGRAMADOAC",$N$9>0,O10="Valores Totais (R$)"),"Parcela "&$N$9&" Executado","Parcela "&Q$9&CHAR(10)&TEXT(DATE(YEAR(DADOS!$A$48),MONTH(DADOS!$A$48)+Q$9-IF(AND(TipoOrçamento="REPROGRAMADOAC",$N$9>0),$N$9,0),1),"mmm/aa")) -> Parcela 2 jan/21 | R10: =IF(AND(TipoOrçamento="REPROGRAMADOAC",$N$9>0,P10="Valores Totais (R$)"),"Parcela "&$N$9&" Executado","Parcela "&R$9&CHAR(10)&TEXT(DATE(YEAR(DADOS!$A$48),MONTH(DADOS!$A$48)+R$9-IF(AND(TipoOrçamento="REPROGRAMADOAC",$N$9>0),$N$9,0),1),"mmm/aa")) -> Parcela 3 fev/21 | S10: =IF(AND(TipoOrçamento="REPROGRAMADOAC",$N$9>0,Q10="Valores Totais (R$)"),"Parcela "&$N$9&" Executado","Parcela "&S$9&CHAR(10)&TEXT(DATE(YEAR(DADOS!$A$48),MONTH(DADOS!$A$48)+S$9-IF(AND(TipoOrçamento="REPROGRAMADOAC",$N$9>0),$N$9,0),1),"mmm/aa")) -> Parcela 4 mar/21 | T10: =IF(AND(TipoOrçamento="REPROGRAMADOAC",$N$9>0,R10="Valores Totais (R$)"),"Parcela "&$N$9&" Executado","Parcela "&T$9&CHAR(10)&TEXT(DATE(YEAR(DADOS!$A$48),MONTH(DADOS!$A$48)+T$9-IF(AND(TipoOrçamento="REPROGRAMADOAC",$N$9>0),$N$9,0),1),"mmm/aa")) -> Parcela 5 abr/21 | U10: =IF(AND(TipoOrçamento="REPROGRAMADOAC",$N$9>0,S10="Valores Totais (R$)"),"Parcela "&$N$9&" Executado","Parcela "&U$9&CHAR(10)&TEXT(DATE(YEAR(DADOS!$A$48),MONTH(DADOS!$A$48)+U$9-IF(AND(TipoOrçamento="REPROGRAMADOAC",$N$9>0),$N$9,0),1),"mmm/aa")) -> Parcela 6 mai/21 | V10: =IF(AND(TipoOrçamento="REPROGRAMADOAC",$N$9>0,T10="Valores Totais (R$)"),"Parcela "&$N$9&" Executado","Parcela "&V$9&CHAR(10)&TEXT(DATE(YEAR(DADOS!$A$48),MONTH(DADOS!$A$48)+V$9-IF(AND(TipoOrçamento="REPROGRAMADOAC",$N$9>0),$N$9,0),1),"mmm/aa")) -> Parcela 7 jun/21 | W10: =IF(AND(TipoOrçamento="REPROGRAMADOAC",$N$9>0,U10="Valores Totais (R$)"),"Parcela "&$N$9&" Executado","Parcela "&W$9&CHAR(10)&TEXT(DATE(YEAR(DADOS!$A$48),MONTH(DADOS!$A$48)+W$9-IF(AND(TipoOrçamento="REPROGRAMADOAC",$N$9>0),$N$9,0),1),"mmm/aa")) -> Parcela 8 jul/21 | AC10: =IF(AND(TipoOrçamento="REPROGRAMADOAC",$N$9>0,AA10="Valores Totais (R$)"),"Parcela "&$N$9&" Executado","Parcela "&AC$9&CHAR(10)&TEXT(DATE(YEAR(DADOS!$A$48),MONTH(DADOS!$A$48)+AC$9-IF(AND(TipoOrçamento="REPROGRAMADOAC",$N$9>0),$N$9,0),1),"mmm/aa")) -> Parcela 1 dez/20
L11: =INDEX(PO!K$12:K$27,MATCH($A13,PO!$V$12:$V$27,0)) ->  | M11: =INDEX(PO!N$12:N$27,MATCH($A13,PO!$V$12:$V$27,0)) ->  | N11: =IF(ROUND(K13,2)=0,K13,ROUND(K13,2)) ->  | O11: Parcela (%) | P11: =IF($B13,0,P12-IF(ISNUMBER(O12),O12,0)) ->  | Q11: =IF($B13,0,Q12-IF(ISNUMBER(P12),P12,0)) ->  | AC11: =IF($B13,0,AC12-IF(ISNUMBER(AB12),AB12,0)) -> 
O12: Acumulado (%) | P12: =MIN(IF($B13,P11+IF(ISNUMBER(O12),O12,0),P13/$N11),1) ->  | Q12: =MIN(IF($B13,Q11+IF(ISNUMBER(P12),P12,0),Q13/$N11),1) ->  | AC12: =MIN(IF($B13,AC11+IF(ISNUMBER(AB12),AB12,0),AC13/$N11),1) -> 
A13: =OFFSET(A13,-CFF.NumLinha,0)+1 ->  | B13: =$C13>=OFFSET($C13,CFF.NumLinha,0) ->  | C13: =INDEX(PO!A$12:A$27,MATCH($A13,PO!$V$12:$V$27,0)) ->  | D13: =IF(ISERROR(J13),I13,SMALL(I13:J13,1))-1 ->  | E13: =IF($C13=1,OFFSET(E13,-CFF.NumLinha,0)+1,OFFSET(E13,-CFF.NumLinha,0)) ->  | F13: =IF($C13=1,0,IF($C13=2,OFFSET(F13,-CFF.NumLinha,0)+1,OFFSET(F13,-CFF.NumLinha,0))) ->  | G13: =IF(AND($C13<=2,$C13<>0),0,IF($C13=3,OFFSET(G13,-CFF.NumLinha,0)+1,OFFSET(G13,-CFF.NumLinha,0))) ->  | H13: =IF(AND($C13<=3,$C13<>0),0,IF($C13=4,OFFSET(H13,-CFF.NumLinha,0)+1,OFFSET(H13,-CFF.NumLinha,0))) ->  | I13: =MATCH(0,OFFSET($D13,1,$C13,ROW($A$21)-ROW($A13)),0) ->  | J13: =MATCH(OFFSET($D13,0,$C13)+1,OFFSET($D13,1,$C13,ROW($A$21)-ROW($A13)),0) ->  | K13: =ROUND(INDEX(PO!T$12:T$27,MATCH($A13,PO!$V$12:$V$27,0)),2)+10^-12 ->  | O13: Acumulado (R$) | P13: =IF($B13,ROUND(P12*$N11,2),ROUND(SUMIF(OFFSET($B13,1,0,$D13),TRUE,OFFSET(P13,1,0,$D13))/SUMIF(OFFSET($B13,1,0,$D13),TRUE,OFFSET($K13,1,0,$D13))*$N11,2)) ->  | Q13: =IF($B13,ROUND(Q12*$N11,2),ROUND(SUMIF(OFFSET($B13,1,0,$D13),TRUE,OFFSET(Q13,1,0,$D13))/SUMIF(OFFSET($B13,1,0,$D13),TRUE,OFFSET($K13,1,0,$D13))*$N11,2)) ->  | AC13: =IF($B13,ROUND(AC12*$N11,2),ROUND(SUMIF(OFFSET($B13,1,0,$D13),TRUE,OFFSET(AC13,1,0,$D13))/SUMIF(OFFSET($B13,1,0,$D13),TRUE,OFFSET($K13,1,0,$D13))*$N11,2)) -> 
L14: CRONOGRAMA GLOBAL DO LOTE | N14: =IF(PO!$T$12=0,10^-12,PO!$T$12) -> 161021.21 | O14: Parcela (%) | P14: =ROUND(P15/$N14,4) -> 0.6 | Q14: =ROUND(Q15/$N14,4) -> 0.2 | R14: 0.2 | S14: 0 | T14: 0 | U14: 0 | V14: 0 | W14: 0 | AC14: =ROUND(AC15/$N14,4) -> 0
O15: Parcela (R$) | P15: =P17-IF(ISNUMBER(O17),O17,0) -> 96612.73 | Q15: =Q17-IF(ISNUMBER(P17),P17,0) -> 32204.24 | R15: 32204.24 | S15: 0 | T15: 0 | U15: 0 | V15: 0 | W15: 0 | AC15: =AC17-IF(ISNUMBER(AB17),AB17,0) -> 0
O16: Acumulado (%) | P16: =ROUND(P17/$N14,4) -> 0.6 | Q16: =ROUND(Q17/$N14,4) -> 0.8 | R16: 1 | S16: 1 | T16: 1 | U16: 1 | V16: 1 | W16: 1 | AC16: =ROUND(AC17/$N14,4) -> 0
A17: 0 | D17: =ROW(D$21)-ROW(D18) -> 3 | O17: Acumulado (R$) | P17: =SUMIF(OFFSET($C17,1,0):$C$21,1,OFFSET(P17,1,0):P$21) -> 96612.73 | Q17: =SUMIF(OFFSET($C17,1,0):$C$21,1,OFFSET(Q17,1,0):Q$21) -> 128816.97 | R17: =SUMIF(OFFSET($C17,1,0):$C$21,1,OFFSET(R17,1,0):R$21) -> 161021.21 | S17: =SUMIF(OFFSET($C17,1,0):$C$21,1,OFFSET(S17,1,0):S$21) -> 161021.21 | T17: =SUMIF(OFFSET($C17,1,0):$C$21,1,OFFSET(T17,1,0):T$21) -> 161021.21 | U17: =SUMIF(OFFSET($C17,1,0):$C$21,1,OFFSET(U17,1,0):U$21) -> 161021.21 | V17: =SUMIF(OFFSET($C17,1,0):$C$21,1,OFFSET(V17,1,0):V$21) -> 161021.21 | W17: =SUMIF(OFFSET($C17,1,0):$C$21,1,OFFSET(W17,1,0):W$21) -> 161021.21 | AC17: =SUMIF(OFFSET($C17,1,0):$C$21,1,OFFSET(AC17,1,0):AC$21) -> 0
L18: =INDEX(PO!K$12:K$27,MATCH($A20,PO!$V$12:$V$27,0)) -> 1. | M18: =INDEX(PO!N$12:N$27,MATCH($A20,PO!$V$12:$V$27,0)) -> RUA SÃO LOURENÇO | N18: =IF(ROUND(K20,2)=0,K20,ROUND(K20,2)) -> 161021.21 | O18: Parcela (%) | P18: 0.6 | Q18: 0.2 | R18: 0.2 | S18: =IF($B20,0,S19-IF(ISNUMBER(R19),R19,0)) -> 0 | T18: 0 | U18: 0 | V18: 0 | W18: 0 | AC18: =IF($B20,0,AC19-IF(ISNUMBER(AB19),AB19,0)) -> 0
O19: Acumulado (%) | P19: =MIN(IF($B20,P18+IF(ISNUMBER(O19),O19,0),P20/$N18),1) -> 0.6 | Q19: 0.8 | R19: 1 | S19: 1 | T19: 1 | U19: 1 | V19: 1 | W19: 1 | AC19: =MIN(IF($B20,AC18+IF(ISNUMBER(AB19),AB19,0),AC20/$N18),1) -> 0
A20: =OFFSET(A20,-CFF.NumLinha,0)+1 -> 1 | B20: =$C20>=OFFSET($C20,CFF.NumLinha,0) -> TRUE | C20: =INDEX(PO!A$12:A$27,MATCH($A20,PO!$V$12:$V$27,0)) -> 1 | D20: =IF(ISERROR(J20),I20,SMALL(I20:J20,1))-1 -> 0 | E20: =IF($C20=1,OFFSET(E20,-CFF.NumLinha,0)+1,OFFSET(E20,-CFF.NumLinha,0)) -> 1 | F20: =IF($C20=1,0,IF($C20=2,OFFSET(F20,-CFF.NumLinha,0)+1,OFFSET(F20,-CFF.NumLinha,0))) -> 0 | G20: =IF(AND($C20<=2,$C20<>0),0,IF($C20=3,OFFSET(G20,-CFF.NumLinha,0)+1,OFFSET(G20,-CFF.NumLinha,0))) -> 0 | H20: =IF(AND($C20<=3,$C20<>0),0,IF($C20=4,OFFSET(H20,-CFF.NumLinha,0)+1,OFFSET(H20,-CFF.NumLinha,0))) -> 0 | I20: =MATCH(0,OFFSET($D20,1,$C20,ROW($A$21)-ROW($A20)),0) -> 1 | J20: =MATCH(OFFSET($D20,0,$C20)+1,OFFSET($D20,1,$C20,ROW($A$21)-ROW($A20)),0) ->  | K20: =ROUND(INDEX(PO!T$12:T$27,MATCH($A20,PO!$V$12:$V$27,0)),2)+10^-12 -> 161021.21 | O20: Acumulado (R$) | P20: =IF($B20,ROUND(P19*$N18,2),ROUND(SUMIF(OFFSET($B20,1,0,$D20),TRUE,OFFSET(P20,1,0,$D20))/SUMIF(OFFSET($B20,1,0,$D20),TRUE,OFFSET($K20,1,0,$D20))*$N18,2)) -> 96612.73 | Q20: 128816.97 | R20: 161021.21 | S20: 161021.21 | T20: 161021.21 | U20: 161021.21 | V20: 161021.21 | W20: 161021.21 | AC20: =IF($B20,ROUND(AC19*$N18,2),ROUND(SUMIF(OFFSET($B20,1,0,$D20),TRUE,OFFSET(AC20,1,0,$D20))/SUMIF(OFFSET($B20,1,0,$D20),TRUE,OFFSET($K20,1,0,$D20))*$N18,2)) -> 0
C21: -1 | E21: 0 | F21: 0 | G21: 0 | H21: 0
L23: =DADOS!I32 -> 0
L24: Local
L26: =PO!K41 -> 2020-10-20
L27: Data
